[Event "Titled Tuesday Blitz May 2 Late 2023"]
[White "Grigoriants, Sergey"]
[Black "Sai Krishna G V"]
[WhiteFideId "4130804"]
[BlackFideId "5028280"]
[WhiteElo "2502"]
[BlackElo "2359"]
[Result "1/2-1/2"]
[Round "08"]
[TimeControl "180+2"]
[Date "2023.05.02"]
[WhiteClock "0:00:05"]
[BlackClock "0:00:13"]

1. d4 {[%clk 0:02:57]}  Nf6 {[%clk 0:02:59]} 2. c4 {[%clk 0:02:56]}  g6 {[%clk 0:02:59]} 3. f3 {[%clk 0:02:56]}  c5 {[%clk 0:02:55]} 4. d5 {[%clk 0:02:55]}  b5 {[%clk 0:02:56]} 5. e4 {[%clk 0:02:54]}  d6 {[%clk 0:02:53]} 6. cxb5 {[%clk 0:02:52]}  a6 {[%clk 0:02:53]} 7. bxa6 {[%clk 0:02:52]}  Bg7 {[%clk 0:02:47]} 8. Nc3 {[%clk 0:02:47]}  O-O {[%clk 0:02:43]} 9. Bc4 {[%clk 0:02:15]}  Nfd7 {[%clk 0:02:29]} 10. Nge2 {[%clk 0:02:12]}  Ne5 {[%clk 0:02:28]} 11. Bb5 {[%clk 0:02:11]}  Bxa6 {[%clk 0:02:27]} 12. Bxa6 {[%clk 0:02:10]}  Nxa6 {[%clk 0:02:26]} 13. O-O {[%clk 0:02:11]}  c4 {[%clk 0:02:26]} 14. Be3 {[%clk 0:02:06]}  Nb4 {[%clk 0:02:12]} 15. Qd2 {[%clk 0:01:58]}  Qa5 {[%clk 0:01:54]} 16. Bd4 {[%clk 0:01:36]}  Nbd3 {[%clk 0:01:50]} 17. h3 {[%clk 0:01:27]}  Rfb8 {[%clk 0:01:41]} 18. Rab1 {[%clk 0:01:27]}  Nc5 {[%clk 0:01:06]} 19. Kh2 {[%clk 0:01:21]}  Rb4 {[%clk 0:01:04]} 20. f4 {[%clk 0:01:15]}  Ned3 {[%clk 0:01:03]} 21. Bxg7 {[%clk 0:01:15]}  Kxg7 {[%clk 0:01:04]} 22. Nd4 {[%clk 0:01:16]}  Rb7 {[%clk 0:00:56]} 23. f5 {[%clk 0:01:08]}  Ne5 {[%clk 0:00:50]} 24. Nc6 {[%clk 0:01:07]}  Qb6 {[%clk 0:00:32]} 25. Nxe7 {[%clk 0:00:58]}  f6 {[%clk 0:00:30]} 26. Nc6 {[%clk 0:00:54]}  Nxc6 {[%clk 0:00:30]} 27. dxc6 {[%clk 0:00:54]}  Qxc6 {[%clk 0:00:31]} 28. fxg6 {[%clk 0:00:53]}  hxg6 {[%clk 0:00:29]} 29. Qd4 {[%clk 0:00:48]}  Rf8 {[%clk 0:00:27]} 30. Qxc4 {[%clk 0:00:48]}  Qe8 {[%clk 0:00:21]} 31. Qd4 {[%clk 0:00:46]}  Rd7 {[%clk 0:00:18]} 32. Kh1 {[%clk 0:00:45]}  Ne6 {[%clk 0:00:18]} 33. Qe3 {[%clk 0:00:43]}  Ng5 {[%clk 0:00:19]} 34. Rf4 {[%clk 0:00:40]}  Rh8 {[%clk 0:00:19]} 35. Rbf1 {[%clk 0:00:38]}  Rf7 {[%clk 0:00:19]} 36. Nd5 {[%clk 0:00:36]}  Qe5 {[%clk 0:00:19]} 37. Qc3 {[%clk 0:00:29]}  Nxe4 {[%clk 0:00:17]} 38. Qd3 {[%clk 0:00:06]}  f5 {[%clk 0:00:16]} 39. Nc3 {[%clk 0:00:06]}  Nf6 {[%clk 0:00:15]} 40. R4f2 {[%clk 0:00:05]}  Re7 {[%clk 0:00:15]} 41. Kg1 {[%clk 0:00:05]}  Qc5 {[%clk 0:00:15]} 42. Kh1 {[%clk 0:00:04]}  Rhe8 {[%clk 0:00:14]} 43. Rd2 {[%clk 0:00:04]}  Re6 {[%clk 0:00:14]} 44. Qd4 {[%clk 0:00:04]}  Qa5 {[%clk 0:00:13]} 45. Rfd1 {[%clk 0:00:04]}  Kf7 {[%clk 0:00:12]} 46. b4 {[%clk 0:00:03]}  Qc7 {[%clk 0:00:11]} 47. Nd5 {[%clk 0:00:03]}  Nxd5 {[%clk 0:00:11]} 48. Qxd5 {[%clk 0:00:04]}  Kg7 {[%clk 0:00:12]} 49. Qd4+ {[%clk 0:00:04]}  Kh7 {[%clk 0:00:12]} 50. Qh4+ {[%clk 0:00:03]}  Kg7 {[%clk 0:00:12]} 51. Qd4+ {[%clk 0:00:04]}  Kh7 {[%clk 0:00:12]} 52. Qh4+ {[%clk 0:00:04]}  Kg7 {[%clk 0:00:13]} 53. Qd4+ {[%clk 0:00:05]} 1/2-1/2


[Site "https://www.chess.com"]

[Event "Titled Tuesday Blitz May 2 Late 2023"]
[White "Maksimovic, Bojan"]
[Black "Martins, Bruno Andre Leite"]
[WhiteFideId "14408120"]
[BlackFideId "1942255"]
[WhiteElo "2468"]
[BlackElo "2240"]
[Result "0-1"]
[Round "08"]
[TimeControl "180+2"]
[Date "2023.05.02"]
[WhiteClock "0:00:01"]
[BlackClock "0:00:45"]

1. Nf3 {[%clk 0:03:00]}  Nf6 {[%clk 0:02:55]} 2. g3 {[%clk 0:03:01]}  g6 {[%clk 0:02:44]} 3. Bg2 {[%clk 0:03:02]}  Bg7 {[%clk 0:02:44]} 4. O-O {[%clk 0:03:03]}  O-O {[%clk 0:02:45]} 5. d3 {[%clk 0:03:03]}  d5 {[%clk 0:02:44]} 6. Nbd2 {[%clk 0:03:04]}  c5 {[%clk 0:02:45]} 7. e4 {[%clk 0:03:04]}  Nc6 {[%clk 0:02:45]} 8. Re1 {[%clk 0:03:05]}  e5 {[%clk 0:02:44]} 9. exd5 {[%clk 0:03:05]}  Nxd5 {[%clk 0:02:45]} 10. Nc4 {[%clk 0:03:05]}  Re8 {[%clk 0:02:38]} 11. c3 {[%clk 0:03:05]}  b6 {[%clk 0:02:31]} 12. a4 {[%clk 0:03:04]}  Bb7 {[%clk 0:02:29]} 13. Qb3 {[%clk 0:03:04]}  Nc7 {[%clk 0:02:09]} 14. Bg5 {[%clk 0:02:46]}  Qd7 {[%clk 0:02:02]} 15. Nfxe5 {[%clk 0:02:39]}  Bxe5 {[%clk 0:01:46]} 16. Nxe5 {[%clk 0:02:32]}  Rxe5 {[%clk 0:01:46]} 17. Rxe5 {[%clk 0:02:32]}  Nxe5 {[%clk 0:01:47]} 18. Bxb7 {[%clk 0:02:33]}  Re8 {[%clk 0:01:42]} 19. Rd1 {[%clk 0:02:29]}  Ne6 {[%clk 0:01:39]} 20. Bf6 {[%clk 0:01:57]}  Qxb7 {[%clk 0:01:36]} 21. Bxe5 {[%clk 0:01:56]}  Ng5 {[%clk 0:01:37]} 22. d4 {[%clk 0:01:38]}  Nh3+ {[%clk 0:01:37]} 23. Kf1 {[%clk 0:01:37]}  Qf3 {[%clk 0:01:36]} 24. Qc2 {[%clk 0:01:12]}  f6 {[%clk 0:01:34]} 25. Qd3 {[%clk 0:01:13]}  Qxd3+ {[%clk 0:01:31]} 26. Rxd3 {[%clk 0:01:14]}  fxe5 {[%clk 0:01:32]} 27. dxe5 {[%clk 0:00:52]}  Ng5 {[%clk 0:01:30]} 28. f4 {[%clk 0:00:48]}  Ne6 {[%clk 0:01:30]} 29. Rd7 {[%clk 0:00:48]}  Ra8 {[%clk 0:01:27]} 30. Re7 {[%clk 0:00:46]}  Ng7 {[%clk 0:01:27]} 31. Ke2 {[%clk 0:00:43]}  h5 {[%clk 0:01:25]} 32. Kd3 {[%clk 0:00:40]}  h4 {[%clk 0:01:25]} 33. g4 {[%clk 0:00:36]}  Rd8+ {[%clk 0:01:24]} 34. Ke4 {[%clk 0:00:33]}  Rd2 {[%clk 0:01:19]} 35. f5 {[%clk 0:00:33]}  gxf5+ {[%clk 0:01:15]} 36. gxf5 {[%clk 0:00:34]}  Re2+ {[%clk 0:01:15]} 37. Kf3 {[%clk 0:00:20]}  Nxf5 {[%clk 0:01:15]} 38. Rxa7 {[%clk 0:00:20]}  Rxh2 {[%clk 0:01:12]} 39. e6 {[%clk 0:00:19]}  Rxb2 {[%clk 0:01:09]} 40. a5 {[%clk 0:00:14]}  bxa5 {[%clk 0:00:57]} 41. Rxa5 {[%clk 0:00:15]}  h3 {[%clk 0:00:57]} 42. Ra1 {[%clk 0:00:15]}  h2 {[%clk 0:00:54]} 43. Kg4 {[%clk 0:00:10]}  Rf2 {[%clk 0:00:50]} 44. Kg5 {[%clk 0:00:02]}  Kf8 {[%clk 0:00:46]} 45. Rh1 {[%clk 0:00:01]}  Ng3 {[%clk 0:00:45]} 0-1


[Site "https://www.chess.com"]

[Event "Titled Tuesday Blitz May 2 Late 2023"]
[White "Seemann, Jakub"]
[Black "Kovalenko, Igor"]
[WhiteFideId "21874697"]
[BlackFideId "14117908"]
[WhiteElo "2364"]
[BlackElo "2574"]
[Result "1-0"]
[Round "08"]
[TimeControl "180+2"]
[Date "2023.05.02"]
[WhiteClock "0:00:13"]
[BlackClock "0:00:14"]

1. e4 {[%clk 0:03:00]}  c5 {[%clk 0:03:00]} 2. Nf3 {[%clk 0:03:00]}  d6 {[%clk 0:03:00]} 3. d4 {[%clk 0:03:00]}  cxd4 {[%clk 0:03:00]} 4. Nxd4 {[%clk 0:03:00]}  Nf6 {[%clk 0:03:01]} 5. Nc3 {[%clk 0:03:00]}  a6 {[%clk 0:03:01]} 6. Bg5 {[%clk 0:02:58]}  Nbd7 {[%clk 0:02:59]} 7. f4 {[%clk 0:02:53]}  h6 {[%clk 0:02:56]} 8. Bxf6 {[%clk 0:02:48]}  Nxf6 {[%clk 0:02:57]} 9. e5 {[%clk 0:02:49]}  dxe5 {[%clk 0:02:56]} 10. fxe5 {[%clk 0:02:50]}  Nd5 {[%clk 0:02:53]} 11. e6 {[%clk 0:02:50]}  Nxc3 {[%clk 0:02:44]} 12. exf7+ {[%clk 0:02:50]}  Kxf7 {[%clk 0:02:44]} 13. Bc4+ {[%clk 0:02:49]}  e6 {[%clk 0:02:41]} 14. O-O+ {[%clk 0:02:43]}  Kg8 {[%clk 0:02:40]} 15. bxc3 {[%clk 0:02:40]}  Bc5 {[%clk 0:02:40]} 16. Kh1 {[%clk 0:02:39]}  Bxd4 {[%clk 0:02:38]} 17. cxd4 {[%clk 0:02:40]}  b5 {[%clk 0:02:38]} 18. Bb3 {[%clk 0:02:39]}  Qd6 {[%clk 0:02:34]} 19. Qg4 {[%clk 0:02:09]}  Ra7 {[%clk 0:02:32]} 20. Rae1 {[%clk 0:02:08]}  Re7 {[%clk 0:02:27]} 21. Rf6 {[%clk 0:02:03]}  h5 {[%clk 0:02:16]} 22. Qg5 {[%clk 0:01:59]}  Qxd4 {[%clk 0:02:08]} 23. Ref1 {[%clk 0:01:58]}  Re8 {[%clk 0:01:45]} 24. Rf7 {[%clk 0:01:42]}  Rh6 {[%clk 0:01:42]} 25. h3 {[%clk 0:01:30]}  Kh8 {[%clk 0:01:16]} 26. Rc7 {[%clk 0:01:20]}  Rg8 {[%clk 0:01:11]} 27. c3 {[%clk 0:01:08]}  Qd3 {[%clk 0:01:09]} 28. Rff7 {[%clk 0:01:04]}  Qg6 {[%clk 0:01:08]} 29. Qc5 {[%clk 0:00:50]}  h4 {[%clk 0:01:01]} 30. Rf8 {[%clk 0:00:24]}  Qg3 {[%clk 0:00:41]} 31. Rcxc8 {[%clk 0:00:18]}  Qe1+ {[%clk 0:00:35]} 32. Kh2 {[%clk 0:00:15]}  Qg3+ {[%clk 0:00:35]} 33. Kg1 {[%clk 0:00:14]}  Qe1+ {[%clk 0:00:28]} 34. Rf1 {[%clk 0:00:14]}  Qe4 {[%clk 0:00:24]} 35. Rxg8+ {[%clk 0:00:10]}  Kxg8 {[%clk 0:00:24]} 36. Qf8+ {[%clk 0:00:10]}  Kh7 {[%clk 0:00:24]} 37. Qf4 {[%clk 0:00:11]}  Qxf4 {[%clk 0:00:23]} 38. Rxf4 {[%clk 0:00:12]}  a5 {[%clk 0:00:18]} 39. Bc2+ {[%clk 0:00:12]}  Kg8 {[%clk 0:00:18]} 40. a4 {[%clk 0:00:13]}  bxa4 {[%clk 0:00:18]} 41. Rxa4 {[%clk 0:00:14]}  Rh5 {[%clk 0:00:18]} 42. c4 {[%clk 0:00:14]}  Kf7 {[%clk 0:00:17]} 43. Kf2 {[%clk 0:00:14]}  Ke7 {[%clk 0:00:17]} 44. Ke3 {[%clk 0:00:15]}  Rg5 {[%clk 0:00:17]} 45. Be4 {[%clk 0:00:14]}  Kd6 {[%clk 0:00:18]} 46. Kd4 {[%clk 0:00:14]}  Kc7 {[%clk 0:00:16]} 47. c5 {[%clk 0:00:13]}  e5+ {[%clk 0:00:13]} 48. Kd5 {[%clk 0:00:13]}  Rg3 {[%clk 0:00:13]} 49. Rxa5 {[%clk 0:00:13]}  Rc3 {[%clk 0:00:14]} 50. Ra7+ {[%clk 0:00:13]} 1-0


[Site "https://www.chess.com"]

[Event "Titled Tuesday Blitz May 2 Late 2023"]
[White "Ambartsumova, Karina"]
[Black "Kobo, Ori"]
[WhiteFideId "4166299"]
[BlackFideId "2812320"]
[WhiteElo "2240"]
[BlackElo "2447"]
[Result "1/2-1/2"]
[Round "08"]
[TimeControl "180+2"]
[Date "2023.05.02"]
[WhiteClock "0:00:10"]
[BlackClock "0:00:07"]

1. c4 {[%clk 0:02:59]}  e6 {[%clk 0:02:59]} 2. Nc3 {[%clk 0:02:56]}  d5 {[%clk 0:03:00]} 3. cxd5 {[%clk 0:02:57]}  exd5 {[%clk 0:02:59]} 4. d4 {[%clk 0:02:57]}  Nf6 {[%clk 0:02:55]} 5. Bg5 {[%clk 0:02:57]}  c6 {[%clk 0:02:55]} 6. e3 {[%clk 0:02:57]}  Be7 {[%clk 0:02:55]} 7. Bd3 {[%clk 0:02:58]}  h6 {[%clk 0:02:56]} 8. Bh4 {[%clk 0:02:57]}  O-O {[%clk 0:02:56]} 9. Qc2 {[%clk 0:02:57]}  Ne8 {[%clk 0:02:55]} 10. Bxe7 {[%clk 0:02:57]}  Qxe7 {[%clk 0:02:56]} 11. Nge2 {[%clk 0:02:57]}  Nd6 {[%clk 0:02:56]} 12. O-O-O {[%clk 0:02:52]}  a5 {[%clk 0:02:55]} 13. h3 {[%clk 0:02:52]}  Na6 {[%clk 0:02:54]} 14. a3 {[%clk 0:02:50]}  b5 {[%clk 0:02:54]} 15. Nb1 {[%clk 0:02:29]}  Bd7 {[%clk 0:02:38]} 16. Nf4 {[%clk 0:02:14]}  Rfc8 {[%clk 0:02:36]} 17. Kd2 {[%clk 0:01:58]}  Qf6 {[%clk 0:02:12]} 18. Ke1 {[%clk 0:01:43]}  Nc7 {[%clk 0:02:10]} 19. Nd2 {[%clk 0:01:40]}  Re8 {[%clk 0:01:52]} 20. Kf1 {[%clk 0:01:39]}  Ne6 {[%clk 0:01:43]} 21. Nxe6 {[%clk 0:01:36]}  Rxe6 {[%clk 0:01:41]} 22. Nf3 {[%clk 0:01:33]}  Ne4 {[%clk 0:01:26]} 23. Bxe4 {[%clk 0:01:32]}  Rxe4 {[%clk 0:01:24]} 24. Ne5 {[%clk 0:01:32]}  Be8 {[%clk 0:01:15]} 25. Qc3 {[%clk 0:01:20]}  Qe6 {[%clk 0:01:02]} 26. Nd3 {[%clk 0:00:55]}  Qf5 {[%clk 0:00:54]} 27. Nc5 {[%clk 0:00:53]}  Re7 {[%clk 0:00:54]} 28. Re1 {[%clk 0:00:49]}  a4 {[%clk 0:00:40]} 29. Kg1 {[%clk 0:00:48]}  Rd8 {[%clk 0:00:40]} 30. h4 {[%clk 0:00:48]}  Rd6 {[%clk 0:00:39]} 31. Rh3 {[%clk 0:00:46]}  Rg6 {[%clk 0:00:38]} 32. Rh2 {[%clk 0:00:46]}  Rg4 {[%clk 0:00:35]} 33. Qd2 {[%clk 0:00:39]}  Qf6 {[%clk 0:00:32]} 34. g3 {[%clk 0:00:34]}  Qf5 {[%clk 0:00:32]} 35. Qd3 {[%clk 0:00:30]}  Qc8 {[%clk 0:00:26]} 36. Rg2 {[%clk 0:00:28]}  h5 {[%clk 0:00:24]} 37. Kh2 {[%clk 0:00:26]}  Rg6 {[%clk 0:00:20]} 38. f3 {[%clk 0:00:25]}  Rf6 {[%clk 0:00:20]} 39. e4 {[%clk 0:00:23]}  dxe4 {[%clk 0:00:17]} 40. fxe4 {[%clk 0:00:24]}  Qg4 {[%clk 0:00:17]} 41. e5 {[%clk 0:00:23]}  Rf3 {[%clk 0:00:17]} 42. Qe4 {[%clk 0:00:20]}  Qxe4 {[%clk 0:00:09]} 43. Rxe4 {[%clk 0:00:19]}  f6 {[%clk 0:00:06]} 44. Rd2 {[%clk 0:00:18]}  Bg6 {[%clk 0:00:05]} 45. Rf4 {[%clk 0:00:16]}  Re3 {[%clk 0:00:04]} 46. exf6 {[%clk 0:00:16]}  Re2+ {[%clk 0:00:04]} 47. Rf2 {[%clk 0:00:09]}  Rxd2 {[%clk 0:00:04]} 48. Rxd2 {[%clk 0:00:08]}  gxf6 {[%clk 0:00:05]} 49. Kg2 {[%clk 0:00:08]}  Kg7 {[%clk 0:00:05]} 50. Kf2 {[%clk 0:00:09]}  Kf7 {[%clk 0:00:05]} 51. Re2 {[%clk 0:00:08]}  Rc7 {[%clk 0:00:04]} 52. Ke3 {[%clk 0:00:08]}  Bf5 {[%clk 0:00:04]} 53. Kf4 {[%clk 0:00:08]}  Bg4 {[%clk 0:00:05]} 54. Rd2 {[%clk 0:00:09]}  Rc8 {[%clk 0:00:05]} 55. Ne4 {[%clk 0:00:08]}  Rd8 {[%clk 0:00:04]} 56. Nc5 {[%clk 0:00:08]}  Rd5 {[%clk 0:00:04]} 57. Ne4 {[%clk 0:00:08]}  Kg6 {[%clk 0:00:05]} 58. Nc3 {[%clk 0:00:08]}  Rf5+ {[%clk 0:00:05]} 59. Ke4 {[%clk 0:00:08]}  Rf3 {[%clk 0:00:06]} 60. Rg2 {[%clk 0:00:05]}  Rf1 {[%clk 0:00:06]} 61. d5 {[%clk 0:00:04]}  Bf3+ {[%clk 0:00:06]} 62. Kd4 {[%clk 0:00:02]}  Bxg2 {[%clk 0:00:07]} 63. d6 {[%clk 0:00:03]}  Bh3 {[%clk 0:00:07]} 64. Ne4 {[%clk 0:00:02]}  Rd1+ {[%clk 0:00:06]} 65. Kc5 {[%clk 0:00:03]}  Bd7 {[%clk 0:00:06]} 66. Nc3 {[%clk 0:00:03]}  Rd3 {[%clk 0:00:06]} 67. Kb6 {[%clk 0:00:01]}  Rxg3 {[%clk 0:00:05]} 68. Kc7 {[%clk 0:00:02]}  Bh3 {[%clk 0:00:05]} 69. Ne4 {[%clk 0:00:02]}  Re3 {[%clk 0:00:04]} 70. Nf2 {[%clk 0:00:03]}  Be6 {[%clk 0:00:04]} 71. Nd1 {[%clk 0:00:03]}  Re5 {[%clk 0:00:04]} 72. Nc3 {[%clk 0:00:04]}  c5 {[%clk 0:00:04]} 73. Kc6 {[%clk 0:00:04]}  b4 {[%clk 0:00:04]} 74. Nxa4 {[%clk 0:00:04]}  bxa3 {[%clk 0:00:05]} 75. bxa3 {[%clk 0:00:05]}  c4 {[%clk 0:00:05]} 76. Nc3 {[%clk 0:00:05]}  Kf7 {[%clk 0:00:06]} 77. a4 {[%clk 0:00:06]}  Bc8 {[%clk 0:00:05]} 78. a5 {[%clk 0:00:06]}  Ke8 {[%clk 0:00:06]} 79. Kc7 {[%clk 0:00:06]}  Rxa5 {[%clk 0:00:06]} 80. Kxc8 {[%clk 0:00:07]}  Ra8+ {[%clk 0:00:06]} 81. Kc7 {[%clk 0:00:07]}  Ra7+ {[%clk 0:00:07]} 82. Kc6 {[%clk 0:00:06]}  Kd8 {[%clk 0:00:07]} 83. Nd5 {[%clk 0:00:06]}  Ra6+ {[%clk 0:00:08]} 84. Kc5 {[%clk 0:00:06]}  Ra5+ {[%clk 0:00:08]} 85. Kxc4 {[%clk 0:00:07]}  Kd7 {[%clk 0:00:08]} 86. Nxf6+ {[%clk 0:00:07]}  Kxd6 {[%clk 0:00:08]} 87. Kd4 {[%clk 0:00:06]}  Ke6 {[%clk 0:00:08]} 88. Ne4 {[%clk 0:00:06]}  Kf5 {[%clk 0:00:09]} 89. Ke3 {[%clk 0:00:05]}  Ra3+ {[%clk 0:00:08]} 90. Kf2 {[%clk 0:00:06]}  Kf4 {[%clk 0:00:08]} 91. Nf6 {[%clk 0:00:04]}  Ra2+ {[%clk 0:00:08]} 92. Ke1 {[%clk 0:00:04]}  Ra5 {[%clk 0:00:08]} 93. Kf2 {[%clk 0:00:04]}  Ra2+ {[%clk 0:00:07]} 94. Ke1 {[%clk 0:00:04]}  Ra5 {[%clk 0:00:07]} 95. Kf2 {[%clk 0:00:05]}  Rf5 {[%clk 0:00:08]} 96. Nd7 {[%clk 0:00:03]}  Kg4+ {[%clk 0:00:08]} 97. Kg2 {[%clk 0:00:04]}  Kxh4 {[%clk 0:00:09]} 98. Nb6 {[%clk 0:00:04]}  Kg4 {[%clk 0:00:09]} 99. Nc4 {[%clk 0:00:05]}  h4 {[%clk 0:00:10]} 100. Ne3+ {[%clk 0:00:05]}  Kf4 {[%clk 0:00:07]} 101. Nxf5 {[%clk 0:00:06]}  Kxf5 {[%clk 0:00:07]} 102. Kh3 {[%clk 0:00:07]}  Kg5 {[%clk 0:00:08]} 103. Kh2 {[%clk 0:00:07]}  Kg4 {[%clk 0:00:09]} 104. Kh1 {[%clk 0:00:08]}  h3 {[%clk 0:00:10]} 105. Kg1 {[%clk 0:00:09]}  h2+ {[%clk 0:00:08]} 106. Kh1 {[%clk 0:00:10]}  Kh3 {[%clk 0:00:07]} 1/2-1/2


[Site "https://www.chess.com"]

[Event "Titled Tuesday Blitz May 2 Late 2023"]
[White "Bilych, Olexiy"]
[Black "Bryant, John Daniel"]
[WhiteFideId "14156504"]
[BlackFideId "2031280"]
[WhiteElo "2320"]
[BlackElo "2455"]
[Result "1-0"]
[Round "08"]
[TimeControl "180+2"]
[Date "2023.05.02"]
[WhiteClock "0:00:16"]
[BlackClock "0:00:01"]

1. d4 {[%clk 0:03:00]}  Nf6 {[%clk 0:02:54]} 2. c4 {[%clk 0:03:01]}  g6 {[%clk 0:02:54]} 3. Nc3 {[%clk 0:03:00]}  Bg7 {[%clk 0:02:55]} 4. e4 {[%clk 0:03:00]}  d6 {[%clk 0:02:55]} 5. Be2 {[%clk 0:03:00]}  O-O {[%clk 0:02:56]} 6. Be3 {[%clk 0:03:01]}  c5 {[%clk 0:02:51]} 7. d5 {[%clk 0:02:55]}  e6 {[%clk 0:02:51]} 8. Nf3 {[%clk 0:02:54]}  exd5 {[%clk 0:02:51]} 9. cxd5 {[%clk 0:02:54]}  Bg4 {[%clk 0:02:51]} 10. Nd2 {[%clk 0:02:50]}  Bxe2 {[%clk 0:02:50]} 11. Qxe2 {[%clk 0:02:51]}  Re8 {[%clk 0:02:45]} 12. O-O {[%clk 0:02:45]}  Na6 {[%clk 0:02:29]} 13. Rfe1 {[%clk 0:02:30]}  Nc7 {[%clk 0:02:27]} 14. a4 {[%clk 0:02:17]}  a6 {[%clk 0:02:15]} 15. a5 {[%clk 0:01:23]}  Rb8 {[%clk 0:02:11]} 16. Qd3 {[%clk 0:01:06]}  Ng4 {[%clk 0:02:00]} 17. Bf4 {[%clk 0:01:02]}  Bd4 {[%clk 0:01:00]} 18. Bg3 {[%clk 0:01:00]}  Qf6 {[%clk 0:00:30]} 19. Qf3 {[%clk 0:00:50]}  Qg5 {[%clk 0:00:28]} 20. Nc4 {[%clk 0:00:41]}  Rbd8 {[%clk 0:00:17]} 21. h4 {[%clk 0:00:33]}  Qh5 {[%clk 0:00:13]} 22. Ne2 {[%clk 0:00:29]}  Ne5 {[%clk 0:00:12]} 23. Qxh5 {[%clk 0:00:28]}  gxh5 {[%clk 0:00:09]} 24. Bxe5 {[%clk 0:00:21]}  dxe5 {[%clk 0:00:07]} 25. Ng3 {[%clk 0:00:20]}  Nb5 {[%clk 0:00:05]} 26. Nxh5 {[%clk 0:00:20]}  Kf8 {[%clk 0:00:03]} 27. Nf6 {[%clk 0:00:20]}  Re7 {[%clk 0:00:04]} 28. Rad1 {[%clk 0:00:17]}  Kg7 {[%clk 0:00:03]} 29. Nh5+ {[%clk 0:00:18]}  Kg6 {[%clk 0:00:03]} 30. Ng3 {[%clk 0:00:18]}  Ree8 {[%clk 0:00:03]} 31. Rd3 {[%clk 0:00:17]}  h5 {[%clk 0:00:02]} 32. Nf5 {[%clk 0:00:17]}  Rh8 {[%clk 0:00:01]} 33. Rg3+ {[%clk 0:00:17]}  Kf6 {[%clk 0:00:02]} 34. Rd1 {[%clk 0:00:16]}  Rd7 {[%clk 0:00:01]} 35. Rdd3 {[%clk 0:00:16]} 1-0


[Site "https://www.chess.com"]

[Event "Titled Tuesday Blitz May 2 Late 2023"]
[White "Yoo, Christopher Woojin"]
[Black "Manukyan, Sargis A."]
[WhiteFideId "30909694"]
[BlackFideId "13303970"]
[WhiteElo "2519"]
[BlackElo "2187"]
[Result "1-0"]
[Round "08"]
[TimeControl "180+2"]
[Date "2023.05.02"]
[WhiteClock "0:00:25"]
[BlackClock "0:00:11"]

1. e4 {[%clk 0:03:00]}  c5 {[%clk 0:03:00]} 2. Nf3 {[%clk 0:02:59]}  d6 {[%clk 0:03:00]} 3. d4 {[%clk 0:03:00]}  cxd4 {[%clk 0:03:01]} 4. Nxd4 {[%clk 0:03:00]}  Nf6 {[%clk 0:03:02]} 5. Nc3 {[%clk 0:02:57]}  g6 {[%clk 0:03:02]} 6. Be3 {[%clk 0:02:49]}  Bg7 {[%clk 0:03:02]} 7. f3 {[%clk 0:02:46]}  O-O {[%clk 0:03:03]} 8. Qd2 {[%clk 0:02:46]}  Nc6 {[%clk 0:03:03]} 9. O-O-O {[%clk 0:02:45]}  d5 {[%clk 0:03:03]} 10. Qe1 {[%clk 0:02:44]}  Nxd4 {[%clk 0:02:55]} 11. Bxd4 {[%clk 0:02:42]}  e6 {[%clk 0:02:21]} 12. h4 {[%clk 0:02:18]}  Qa5 {[%clk 0:02:05]} 13. e5 {[%clk 0:02:10]}  Nd7 {[%clk 0:01:57]} 14. h5 {[%clk 0:02:10]}  Rb8 {[%clk 0:01:52]} 15. Kb1 {[%clk 0:01:11]}  b5 {[%clk 0:01:51]} 16. Nxd5 {[%clk 0:01:06]}  Qxe1 {[%clk 0:01:17]} 17. Ne7+ {[%clk 0:01:04]}  Kh8 {[%clk 0:01:18]} 18. Rxe1 {[%clk 0:01:05]}  Re8 {[%clk 0:01:04]} 19. Nc6 {[%clk 0:01:03]}  Ra8 {[%clk 0:01:03]} 20. Bxb5 {[%clk 0:01:01]}  Bb7 {[%clk 0:00:47]} 21. Na5 {[%clk 0:00:57]}  Bc8 {[%clk 0:00:42]} 22. Bc6 {[%clk 0:00:56]}  Rb8 {[%clk 0:00:42]} 23. Bxa7 {[%clk 0:00:57]}  Rb4 {[%clk 0:00:41]} 24. a3 {[%clk 0:00:55]}  Rf4 {[%clk 0:00:37]} 25. Be3 {[%clk 0:00:49]}  Rf5 {[%clk 0:00:36]} 26. hxg6 {[%clk 0:00:40]}  fxg6 {[%clk 0:00:34]} 27. Nc4 {[%clk 0:00:39]}  Ref8 {[%clk 0:00:33]} 28. Nd6 {[%clk 0:00:27]}  Rxe5 {[%clk 0:00:31]} 29. Nxc8 {[%clk 0:00:26]}  Rxc8 {[%clk 0:00:26]} 30. Bxd7 {[%clk 0:00:26]}  Rb8 {[%clk 0:00:27]} 31. Bc1 {[%clk 0:00:27]}  Rd5 {[%clk 0:00:24]} 32. Bxe6 {[%clk 0:00:26]}  Rdb5 {[%clk 0:00:24]} 33. Bb3 {[%clk 0:00:26]}  g5 {[%clk 0:00:23]} 34. Re7 {[%clk 0:00:25]}  h6 {[%clk 0:00:21]} 35. Rd1 {[%clk 0:00:26]}  Kh7 {[%clk 0:00:20]} 36. Rdd7 {[%clk 0:00:26]}  Kg6 {[%clk 0:00:14]} 37. Rxg7+ {[%clk 0:00:25]}  Kh5 {[%clk 0:00:14]} 38. Rd6 {[%clk 0:00:25]}  Kh4 {[%clk 0:00:14]} 39. Rxh6+ {[%clk 0:00:25]}  Kg3 {[%clk 0:00:14]} 40. Rxg5+ {[%clk 0:00:25]}  Kf2 {[%clk 0:00:15]} 41. Rxb5 {[%clk 0:00:24]}  Rxb5 {[%clk 0:00:15]} 42. g4 {[%clk 0:00:25]}  Kg3 {[%clk 0:00:15]} 43. g5 {[%clk 0:00:26]}  Re5 {[%clk 0:00:15]} 44. g6 {[%clk 0:00:26]}  Re7 {[%clk 0:00:11]} 45. Rh7 {[%clk 0:00:26]}  Re8 {[%clk 0:00:10]} 46. g7 {[%clk 0:00:26]}  Kf2 {[%clk 0:00:11]} 47. g8=Q {[%clk 0:00:26]}  Re1 {[%clk 0:00:12]} 48. Rh2+ {[%clk 0:00:25]}  Kf1 {[%clk 0:00:12]} 49. Bc4+ {[%clk 0:00:25]}  Re2 {[%clk 0:00:11]} 50. Qg2+ {[%clk 0:00:25]}  Ke1 {[%clk 0:00:11]} 1-0


[Site "https://www.chess.com"]

[Event "Titled Tuesday Blitz May 2 Late 2023"]
[White "Antonica, Dragos-Andrei"]
[Black "Kuznetsov, Felix"]
[WhiteFideId "1246372"]
[BlackFideId "34147990"]
[WhiteElo "2285"]
[BlackElo "2265"]
[Result "1-0"]
[Round "08"]
[TimeControl "180+2"]
[Date "2023.05.02"]
[WhiteClock "0:00:12"]
[BlackClock "0:00:09"]

1. Nf3 {[%clk 0:02:50]}  Nf6 {[%clk 0:02:47]} 2. e3 {[%clk 0:02:49]}  e6 {[%clk 0:02:47]} 3. c4 {[%clk 0:02:50]}  b6 {[%clk 0:02:47]} 4. a3 {[%clk 0:02:48]}  Bb7 {[%clk 0:02:47]} 5. Qc2 {[%clk 0:02:49]}  Be7 {[%clk 0:02:46]} 6. Nc3 {[%clk 0:02:50]}  O-O {[%clk 0:02:46]} 7. b3 {[%clk 0:02:49]}  d5 {[%clk 0:02:46]} 8. Bb2 {[%clk 0:02:50]}  c5 {[%clk 0:02:45]} 9. cxd5 {[%clk 0:02:43]}  Nxd5 {[%clk 0:02:42]} 10. Bd3 {[%clk 0:02:42]}  h6 {[%clk 0:02:40]} 11. h4 {[%clk 0:02:37]}  Nc6 {[%clk 0:02:34]} 12. Nxd5 {[%clk 0:02:24]}  exd5 {[%clk 0:02:34]} 13. Bh7+ {[%clk 0:02:14]}  Kh8 {[%clk 0:02:34]} 14. Bf5 {[%clk 0:02:15]}  d4 {[%clk 0:02:31]} 15. b4 {[%clk 0:02:09]}  Bf6 {[%clk 0:02:11]} 16. bxc5 {[%clk 0:02:01]}  bxc5 {[%clk 0:02:11]} 17. O-O {[%clk 0:01:38]}  Ne5 {[%clk 0:01:48]} 18. Nxe5 {[%clk 0:01:32]}  Bxe5 {[%clk 0:01:48]} 19. Qxc5 {[%clk 0:01:27]}  Qf6 {[%clk 0:01:38]} 20. Bxd4 {[%clk 0:01:04]}  Bxd4 {[%clk 0:01:35]} 21. exd4 {[%clk 0:01:03]}  Qxh4 {[%clk 0:01:30]} 22. Rab1 {[%clk 0:00:49]}  Ba6 {[%clk 0:01:25]} 23. Rfe1 {[%clk 0:00:48]}  Rad8 {[%clk 0:01:24]} 24. Qxa7 {[%clk 0:00:42]}  Bc4 {[%clk 0:01:16]} 25. Qc5 {[%clk 0:00:42]}  Bd5 {[%clk 0:01:11]} 26. Re5 {[%clk 0:00:41]}  Ba8 {[%clk 0:01:04]} 27. d5 {[%clk 0:00:32]}  f6 {[%clk 0:01:01]} 28. Re4 {[%clk 0:00:28]}  Qg5 {[%clk 0:00:59]} 29. Be6 {[%clk 0:00:26]}  Rfe8 {[%clk 0:00:50]} 30. Rbe1 {[%clk 0:00:20]}  Qxd2 {[%clk 0:00:40]} 31. R1e2 {[%clk 0:00:16]}  Qg5 {[%clk 0:00:36]} 32. Rg4 {[%clk 0:00:12]}  Qh5 {[%clk 0:00:20]} 33. Qc7 {[%clk 0:00:12]}  g5 {[%clk 0:00:09]} 34. Bf5 {[%clk 0:00:12]} 1-0


[Site "https://www.chess.com"]